{"text_format":"1","workbook":"xlsx","n_sheets":2,"sheets":["hoja1","CONTROL"],"not_rendered":{"charts":0,"images":0,"macros":1,"external_links":0,"defined_names":12,"comments":0,"pivot_tables":0},"unopened":[],"bounds":{"document_bytes":16777216,"sheet_cells":100000,"rows_first":2000,"rows_last":500,"rows_between":2000,"halvings":0,"cell_chars":16384,"cell_head_chars":4096},"cells_cut":0,"cells_raw":0,"read":"whole","date_system":"1900"}

{"sheet":"hoja1","index":0,"n_rows":42,"n_cols":18,"rows_kept":42,"cut":false,"hidden":false,"merged":[]}
[null,null,null,null,null,null,null,null,null,"HABITANTS","FAMILIES",null,null,"HABITANTS","FAMILIES"]
[null,null,null,null,null,null,null,null,null,0,0,null,"VAL_D'ARAN",10206,{"$f":"N2/4","v":2551.5},null,"habitants",2]
[null,null,null,null,null,null,null,null,null,35000,4000,null,"SOLSONES",13730,3432.5,null,"families",3]
[null,null,null,null,null,null,null,null,null,75000,9000,null,"CERDANYA",18549,4637.25]
[null,null,null,null,null,null,null,null,null,100000,25000,null,"ALT_URGELL",22005,5501.25]
[null,null,null,null,null,null,null,null,null,300000,50000,null,"SEGARRA",22940,5735]
[null,null,null,null,null,null,null,null,null,500000,150000,null,"RIBERA_D'EBRE",24082,6020.5]
[null,null,null,null,null,null,null,null,null,2000000,300000,null,"RIPOLLES",26580,6645]
[null,null,null,null,null,null,null,null,null,null,null,null,"PLA_DE_L'ESTANY",30660,7665]
[null,null,null,null,null,null,null,null,null,null,null,null,"URGELL",37322,9330.5]
[null,null,null,null,null,null,null,null,null,null,null,null,"PLA_D'URGELL",37371,9342.75]
[null,null,null,null,null,null,null,null,null,null,null,null,"NOGUERA",40130,10032.5]
[null,null,null,null,null,null,null,null,null,null,null,null,"BERGUEDA",41683,10420.75]
[null,null,null,null,null,null,null,null,null,null,null,null,"ALT_CAMP",45326,11331.5]
[null,null,null,null,null,null,null,null,null,null,null,null,"GARROTXA",55439,13859.75]
[null,null,null,null,null,null,null,null,null,null,null,null,"MONTSIA",72333,18083.25]
[null,null,null,null,null,null,null,null,null,null,null,null,"BAIX_EBRE",82222,20555.5]
[null,null,null,null,null,null,null,null,null,null,null,null,"BAIX_PENEDES",99786,24946.5]
[null,null,null,null,null,null,null,null,null,null,null,null,"ALT_PENEDES",104589,26147.25]
[null,null,null,null,null,null,null,null,null,null,null,null,"ANOIA",118057,29514.25]
[null,null,null,null,null,null,null,null,null,null,null,null,"BAIX_EMPORDA",133221,33305.25]
[null,null,null,null,null,null,null,null,null,null,3,null,"ALT_EMPORDA",140262,35065.5]
[null,null,null,null,null,null,null,null,null,null,null,null,"GARRAF",144657,36164.25]
[null,null,null,null,null,null,null,null,null,null,null,null,"OSONA",153499,38374.75]
[null,null,null,null,null,null,null,null,null,null,null,null,"SELVA",171037,42759.25]
[null,null,null,null,null,null,null,null,null,null,null,null,"GIRONES",181153,45288.25]
[null,null,null,null,null,null,null,null,null,null,null,null,"BAGES",185117,46279.25]
[null,null,null,null,null,null,null,null,null,null,null,null,"BAIX_CAMP",190440,47610]
[null,null,null,null,null,null,null,null,null,null,null,null,"SEGRIA",205724,51431]
[null,null,null,null,null,null,null,null,null,null,null,null,"TARRAGONES",249718,62429.5]
[null,null,null,null,null,null,null,null,null,null,null,null,"VALLES_ORIENTAL",396691,99172.75]
[null,null,null,null,null,null,null,null,null,null,null,null,"MARESME",430997,107749.25]
[null,null,null,null,null,null,null,null,null,null,null,null,"BAIX_LLOBREGAT",798468,199617]
[null,null,null,null,null,null,null,null,null,null,null,null,"VALLES_OCCIDENTAL",886530,221632.5]
[null,null,null,null,null,null,null,null,null,null,null,null,"BARCELONES",2251029,562757.25]
[null,null,null,null,null,null,null,null,null,null,null,null,"PALLARS_SOBIRA",798468,{"$f":"N36/4","v":199617}]
[null,null,null,null,null,null,null,null,null,null,null,null,"ALTA_RIBAGORÇA",798468,199617]
[null,null,null,null,null,null,null,null,null,null,null,null,"PALLARS_JUSSA",798468,199617]
[null,null,null,null,null,null,null,null,null,null,null,null,"GARRIGUES",798468,199617]
[null,null,null,null,null,null,null,null,null,null,null,null,"CONCA_BARBERA",798468,199617]
[null,null,null,null,null,null,null,null,null,null,null,null,"PRIORAT",798468,199617]
[null,null,null,null,null,null,null,null,null,null,null,null,"TERRA_ALTA",798468,199617]

{"sheet":"CONTROL","index":1,"n_rows":29,"n_cols":7,"rows_kept":29,"cut":false,"hidden":false,"merged":[[15,0,15,2]]}
["active Reg","TERRA_ALTA","actReg"]
["value",{"$f":"VLOOKUP(actReg,regData,hoja1!K22,FALSE)","v":199617},"actRegValue",null,null,0,"_cls7"]
["Code",{"$f":"VLOOKUP(actRegValue,clsValues,2,TRUE)","v":"_cls3"},"actRegCode",null,null,10000,"_cls6"]
[null,null,null,null,null,30000,"_cls5"]
[null,null,null,null,null,60000,"_cls4"]
[null,null,null,null,null,150000,"_cls3"]
[null,null,null,null,null,300000,"_cls2"]
[null,null,null,null,null,2000000,"_cls1"]
[]
[]
[]
[]
[]
[]
[]
["valors",null,null,null,"VALOR DEGRADAT"]
["red","gren","blue","HABITANTS",20]
[255,255,0]
[{"$f":"IF($A$18<0,0,$A$18)","v":255},{"$f":"IF($B$18<0,0,$B$18)","v":255},{"$f":"IF($C$18<0,0,$C$18)","v":0}]
[{"$f":"IF((A19-$E$17<0),0,+A19-$E$17)","v":235},{"$f":"IF((B19-$E$17<0),0,+B19-$E$17)","v":235},{"$f":"IF((C19-$E$17<0),0,+C19-$E$17)","v":0}]
[{"$f":"IF((A20-$E$17<0),0,+A20-$E$17)","v":215},{"$f":"IF((B20-$E$17<0),0,+B20-$E$17)","v":215},{"$f":"IF((C20-$E$17<0),0,+C20-$E$17)","v":0}]
[195,195,0]
[175,175,0]
[155,155,0]
[135,135,0]
[115,115,0]
[95,95,0]
[75,75,0]
[55,55,0]